Workbook

Sheet Ukentlig salgsaktivitet
B1: UKENTLIG SALGSAKTIVITET | I1: SELGER | J1: Navn | L1: UKEN SLUTTER | M1: Dato
I3: STED | J3: Sted | L3: DAGENS DATO | M3: Dato
B5: DAGER | C5: I SALGSKONTOR | D5: UTENFOR KONTOR | E5: BESØK I KONTOR | F5: EKSTERNE ANROP | G5: LAGRE TELEFONANROP | H5: NY KONTO TELEFON | I5: GJESTEROM | J5: MAT OG DRIKKEVARER | K5: MØTE LEIE AV ROM | L5: ANNET* | M5: SUM
B6: Mandag | C6: kr 14.00 | D6: kr 23.00 | E6: kr 4.00 | F6: kr 45.00 | G6: kr 22.00 | H6: kr 2.00 | I6: kr 100.00 | J6: kr 0.00 | K6: kr 0.00 | L6: kr 0.00 | M6: =SUM(Aktivitet[[#This Row],[I SALGSKONTOR]:[ANNET*]]) -> kr 210.00
B7: Tirsdag | C7: kr 23.00 | D7: kr 76.00 | E7: kr 10.00 | F7: kr 50.00 | G7: kr 54.00 | H7: kr 45.00 | I7: kr 80.00 | J7: kr 0.00 | K7: kr 0.00 | L7: kr 0.00 | M7: =SUM(Aktivitet[[#This Row],[I SALGSKONTOR]:[ANNET*]]) -> kr 338.00
B8: Onsdag | C8: kr 4.00 | D8: kr 130.00 | E8: kr 11.00 | F8: kr 33.00 | G8: kr 67.00 | H8: kr 65.00 | I8: kr 400.00 | J8: kr 0.00 | K8: kr 0.00 | L8: kr 0.00 | M8: =SUM(Aktivitet[[#This Row],[I SALGSKONTOR]:[ANNET*]]) -> kr 710.00
B9: Torsdag | C9: kr 102.00 | D9: kr 40.00 | E9: kr 18.00 | F9: kr 0.00 | G9: kr 86.00 | H9: kr 82.00 | I9: kr 97.00 | J9: kr 0.00 | K9: kr 0.00 | L9: kr 0.00 | M9: =SUM(Aktivitet[[#This Row],[I SALGSKONTOR]:[ANNET*]]) -> kr 425.00
B10: Fredag | C10: kr 33.00 | D10: kr 55.00 | E10: kr 22.00 | F10: kr 49.00 | G10: kr 143.00 | H10: kr 26.00 | I10: kr 50.00 | J10: kr 0.00 | K10: kr 0.00 | L10: kr 0.00 | M10: =SUM(Aktivitet[[#This Row],[I SALGSKONTOR]:[ANNET*]]) -> kr 378.00
B11: Lørdag | C11: kr 0.00 | D11: kr 0.00 | E11: kr 0.00 | F11: kr 0.00 | G11: kr 0.00 | H11: kr 0.00 | I11: kr 0.00 | J11: kr 0.00 | K11: kr 0.00 | L11: kr 0.00 | M11: =SUM(Aktivitet[[#This Row],[I SALGSKONTOR]:[ANNET*]]) -> kr 0.00
B12: Søndag | C12: kr 0.00 | D12: kr 0.00 | E12: kr 0.00 | F12: kr 0.00 | G12: kr 0.00 | H12: kr 0.00 | I12: kr 0.00 | J12: kr 0.00 | K12: kr 0.00 | L12: kr 0.00 | M12: =SUM(Aktivitet[[#This Row],[I SALGSKONTOR]:[ANNET*]]) -> kr 0.00
B13: Sum | C13: =SUBTOTAL(109,Aktivitet[I SALGSKONTOR]) -> kr 176.00 | D13: =SUBTOTAL(109,Aktivitet[UTENFOR KONTOR]) -> kr 324.00 | E13: =SUBTOTAL(109,Aktivitet[BESØK I KONTOR]) -> kr 65.00 | F13: =SUBTOTAL(109,Aktivitet[EKSTERNE ANROP]) -> kr 177.00 | G13: =SUBTOTAL(109,Aktivitet[LAGRE TELEFONANROP]) -> kr 372.00 | H13: =SUBTOTAL(109,Aktivitet[NY KONTO TELEFON]) -> kr 220.00 | I13: =SUBTOTAL(109,Aktivitet[GJESTEROM]) -> kr 727.00 | J13: =SUBTOTAL(109,Aktivitet[MAT OG DRIKKEVARER]) -> kr 0.00 | K13: =SUBTOTAL(109,Aktivitet[MØTE LEIE AV ROM]) -> kr 0.00 | L13: =SUBTOTAL(109,Aktivitet[ANNET*]) -> kr 0.00 | M13: =SUBTOTAL(109,Aktivitet[SUM]) -> kr 2,061.00
B15: MÅL | C15: kr 200.00 | D15: kr 400.00 | E15: kr 300.00 | F15: kr 65.00 | G15: kr 500.00 | H15: kr 300.00 | I15: kr 400.00 | J15: kr 600.00 | K15: kr 300.00 | L15: kr 300.00 | M15: =SUM(C15:L15) -> kr 3,365.00
B16: AVVIK | C16: =SUM(Aktivitet[[#Totals],[I SALGSKONTOR]]-C15) -> -kr 24.00 | D16: =SUM(Aktivitet[[#Totals],[UTENFOR KONTOR]]-D15) -> -kr 76.00 | E16: =SUM(Aktivitet[[#Totals],[BESØK I KONTOR]]-E15) -> -kr 235.00 | F16: =SUM(Aktivitet[[#Totals],[EKSTERNE ANROP]]-F15) -> kr 112.00 | G16: =SUM(Aktivitet[[#Totals],[LAGRE TELEFONANROP]]-G15) -> -kr 128.00 | H16: =SUM(Aktivitet[[#Totals],[NY KONTO TELEFON]]-H15) -> -kr 80.00 | I16: =SUM(Aktivitet[[#Totals],[GJESTEROM]]-I15) -> kr 327.00 | J16: =SUM(Aktivitet[[#Totals],[MAT OG DRIKKEVARER]]-J15) -> -kr 600.00 | K16: =SUM(Aktivitet[[#Totals],[MØTE LEIE AV ROM]]-K15) -> -kr 300.00 | L16: =SUM(Aktivitet[[#Totals],[ANNET*]]-L15) -> -kr 300.00 | M16: =SUM(C16:L16) -> -kr 1,304.00
B18: * FORKLARING
B20: Godkjenning
